Workbook

Sheet A. Eelarve
A3: VARJUPAIGA-, RÄNDE- JA INTEGRATSIOONIFOND | D3: Lisa 2
A4: Toetuse taotleja: | B4: Sisekaitseakadeemia
A5: Projekti pealkiri: | B5: MIGRIB - usulisest, kultuurilisest ja rändetaustast lähtuv riskikäitumine: äratundmine, ennetamine, maandamine
A6: Projekti planeeritav algus: | B6: 2016-08-01
A7: Projekti planeeritav lõpp: | B7: 2017-06-30
A8: Projekti valdkond: | B8: Varjupaik
A10: Tabel 1. Projekti tulud allikate lõikes (EUR)
B11: Rahastamisallikas | C11: Summa | D11: Osakaal %
A12: 1 | B12: AMIF | C12: =IF(D12=75,ROUNDDOWN($C$30*D12/100,2),ROUND($C$30*D12/100,2)) -> 24374.99 | D12: 75
A13: 2 | B13: Riiklik kaasfinantseering | C13: =ROUND($C$30*D13/100,2) -> 8125 | D13: 25
A14: 3 | B14: Toetuse saaja omafinanantseering | C14: =ROUND($C$30*D14/100,2) -> 0
A15: 4 | B15: Partnerite poolne kaasfinantseering | C15: =ROUND($C$30*D15/100,2) -> 0
A16: 5 | B16: Projekti käigus saadud muud sissetulekud | C16: =ROUND($C$30*D16/100,2) -> 0
A17: PROJEKTI MAKSUMUS KOKKU | C17: =SUM(C12:C16) -> 32499.99 | D17: =SUM(D12:D16) -> 100
A19: Tabel 2. Projekti kululiikide koondtabel (EUR)
A20: KOOND | C20: KOKKU | D20: % kogukuludest
A21: Tööjõukulud | C21: =G48 -> 20665.82 | D21: =IFERROR((ROUND(C21/$C$28*100,2)),0) -> 68.04
A22: Lähetuskulud | C22: =G53 -> 2000 | D22: 6.58
A23: Sihtrühmadega seotud tegevused | C23: =G55 -> 6908 | D23: 22.74
A24: EL avalikustamise tegevused | C24: =G61 -> 800 | D24: 2.63
A25: Allhanked | C25: =G64 -> 0 | D25: 0
A26: Seadmed, kinnisvara | C26: =G67 -> 0 | D26: 0
A27: Muud otsesed kulud | C27: =G70 -> 0 | D27: 0
A28: Otsesed kulud kokku | C28: =SUM(C21:C27) -> 30373.82
A29: Kaudsed kulud | C29: =G74 -> 2126.1674
A30: Projekti kulud kokku | C30: =SUM(C28:C29) -> 32499.9874
A32: Tabel 3. Projekti kulude prognoos valdkondade lõikes (EUR) (kui kohaldub)
B33: KOKKU
A34: Varjupaik | B34: 32499.99
A35: Integratsioon | B35: 0
A36: Tagasipöördumine | B36: 0
A37: KOKKU | B37: =SUM(B34:B36) -> 32499.99
A39: Tabel 4. Projekti kulude prognoos meetmete lõikes (EUR) (kui kohaldub)
B40: KOKKU
A41: Vastuvõtt/varjupaik | B41: 32499.99
A42: Suutlikkus | B42: 0
A43: KOKKU | B43: =SUM(B41:B41) -> 32499.99
A45: Tabel 5. Projekti detailne eelarve (EUR)
A46: nr | B46: Kululiik | C46: Kulu detailne kirjeldus | D46: Ühik | E46: Kogus | F46: Ühiku hind KM-ga | G46: KOKKU
A47: PROJEKTI OTSESED KULUD
A48: 1. | B48: Tööjõukulud | G48: =SUM(G49:G52) -> 20665.82
A49: 1.1 | B49: Projektijuht (sõlmitakse käsundusleping või täiendava töö kokkulepe) | C49: Tööaeg 13 töötundi kuus. Projekti sisuliste toodete ja tegevuste kvaliteedi tagamine, projekti üldkoordinatsioon. Projekti tööprotsesside juhtimine, Avalikud suhted ja projekti esindamine, projekti aruandlus. Sisaldab tööandjamakse | D49: tund | E49: =11*13 -> 143 | F49: 18 | G49: =SUM(E49*F49) -> 2574
A50: 1.2 | B50: Projekti raamatupidaja (sõlmitakse kas käsundusleping või täiendava töö kokkulepe) | C50: Tööaeg 10 töötundi kuus. Teostab projektiga seonduvaid finantstehinguid, aruandlust ja kontrolli. Sisaldab tööandjamakse | D50: tund | E50: =10*11 -> 110 | F50: 13.4 | G50: =SUM(E50*F50) -> 1474
A51: 1.3. | B51: Ekspert 1 | C51: Koolituse läbiviimine+ ettevalmistamine (sh materjalid). Sisaldab tööandjamakse, 13,6 tundi kuus käsundus- või töövõtuleping | D51: tund | E51: =11*13.61 -> 149.71 | F51: 55.5 | G51: =ROUND(E51*F51,2) -> 8308.91
A52: 1.4. | B52: Ekspert 2 | C52: Koolituse läbiviimine+ ettevalmistamine (sh materjalid). Sisaldab tööandjamakse. 13,6 tundi kuus käsundus- või töövõtuleping | D52: tund | E52: =11*13.61 -> 149.71 | F52: 55.5 | G52: 8308.91
A53: 2. | B53: Lähetuskulud | G53: =SUM(G54:G54) -> 2000
A54: 2.1. | B54: Projektimeeskonna lähetuskulud | C54: Projektijuhi ja ekspertide Eesti-sisesed lähetuskulud (sh transpordi ja majutuskulud) koolituste läbiviimiseks ja koordineerimiseks. | D54: tk | E54: 10 | F54: 200 | G54: =ROUND(E54*F54,2) -> 2000
A55: 3. | B55: Sihtrühmaga seotud tegevused | G55: =SUM(G56:G60) -> 6908
A56: 3.1. | B56: Koolitus ja meetoodiliste materjalide trükkimise kulud | C56: 3,75 eur/1 materjal | D56: tk | E56: 400 | F56: 3.75 | G56: =ROUND(E56*F56,2) -> 1500
A57: 3.2. | B57: Koolitusmaterjalide kujundamine | C57: kujundamine, interaktiivseks tegemine, veebisobilikuks tegemine jms | D57: tund | E57: 30 | F57: 33.3333 | G57: =ROUND(E57*F57,2) -> 1000
A58: 3.3. | B58: Koolituse toitlustamine | C58: 4 kohvipausi/6 eur 1 in | D58: tk | E58: 8 | F58: 200 | G58: 1600
A59: 3.4. | B59: Koolituse ruumide rent | C59: Koolituse läbiviimiseks vajalike koolitusruumide rent. Sisaldab käibemaksu. | D59: päev | E59: 8 | F59: 151 | G59: 1208
A60: 3.5. | B60: Koolitatavate transpordikulud | C60: Koolituse asukohas mitte töötavate ja elavate koolitatavate koolitusel osalemise kulud (sh transpordi ja majutuskulud) | D60: tk | E60: 8 | F60: 200 | G60: 1600
A61: 4. | B61: EL avalikustamise tegevused | G61: =SUM(G62:G72) -> 800
A62: 4.1. | B62: Koolituse roll-up, plakat | C62: 1 plakat + 1 roll-up | D62: tk | E62: 1 | F62: 500 | G62: =ROUND(E62*F62,2) -> 500
A63: 4.2. | B63: Logodega pastakad | C63: pastakas | D63: tk | E63: 200 | F63: 1.5 | G63: =ROUND(E63*F63,2) -> 300
A64: 5. | B64: Allhanked | G64: =SUM(G65:G66) -> 0
G65: =ROUND(E65*F65,2) -> 0
G66: 0
A67: 6. | B67: Seadmed, kinnisvara | G67: =SUM(G68:G69) -> 0
G68: 0
G69: 0
A70: 7. | B70: Muud otsesed kulud | G70: =SUM(G71:G72) -> 0
G71: 0
G72: 0
A73: PROJEKTI OTSESED KULUD KOKKU | G73: =SUM(G48,G53,G55,G61,G64,G67,G70) -> 30373.82
A74: PROJEKTI KAUDSED KULUD | G74: =SUM(G73*0.07) -> 2126.1674
A75: PROJEKTI KULUD KOKKU | G75: =SUM(G73:G74) -> 32499.9874

Sheet B. Maksetaotlus
A1: =IF(G23=0,"",IF(G23=100,"","Tähelepanu! Tabel 1. Projekti maksumus ja tulud allikate lõikes (EUR), osakaalude summa ei moodusta 100%")) -> 
A2: =IF(D23=D37,"","Tähelepanu! Tabel 1. Projekti maksumus ja tulud allikate lõikes (EUR). Projekti tegelikud tulud kokku ei ole võrdne projekti tegelike kuludega.") -> 
A3: =IF(C45=D37,"","Tähelepanu! Tabel 3. Projekti kulud meetmete lõikes (EUR) kokku ei ole võrdne Tabel 2. Kuluaruande koond tegelikud kulud kokku") -> 
A4: VARJUPAIGA-, RÄNDE- JA INTEGRATSIOONIFOND
A5: Maksetaotluse vorm
A6: Toetuse saaja: | C6: Sisekaitseakadeemia
A7: Projekti pealkiri: | C7: MIGRIB - usulisest, kultuurilisest ja rändetaustast lähtuv riskikäitumine: äratundmine, ennetamine, maandamine
A8: Projekti number: | C8: AMIF2016-11
A9: Toetuslepingu number: | C9: 14-8.6/274-1
A10: Projekti aruandlusperiood: | C10: 01.08.2016-31.10.2016
A13: Tabel 1. Projekti kavandatud maksed
D14: Maksed | H14: Osakaal %
D15: Toetusleping (punkt) | E15: I | F15: Toetusleping (punkt) | G15: II
B16: Rahastamisallikas | C16: KOKKU
A17: 1 | B17: AMIF | C17: ='A. Eelarve'!C12 -> 24374.99 | D17: 4.1.1.1 | E17: =C17*50% -> 12187.495 | F17: 4.1.2.1 | G17: =C17*50% -> 12187.495 | H17: 75
A18: 2 | B18: Riiklik kaasfinantseering | C18: ='A. Eelarve'!C13 -> 8125 | D18: 4.1.1.2 | E18: =C18*50% -> 4062.5 | F18: 4.1.2.2 | G18: =C18*50% -> 4062.5 | H18: 25
A19: 3 | B19: Toetuse saaja omafinanantseering | C19: ='A. Eelarve'!C14 -> 0 | E19: =ROUND(C19*$E$16,2) -> 0 | G19: =ROUND(C19*$G$16,2) -> 0 | H19: 0
A20: 4 | B20: Partnerite poolne kaasfinantseering | C20: ='A. Eelarve'!C15 -> 0 | E20: =ROUND(C20*$E$16,2) -> 0 | G20: =ROUND(C20*$G$16,2) -> 0 | H20: 0
A21: 5 | B21: Projekti käigus saadud muud sissetulekud | C21: ='A. Eelarve'!C16 -> 0 | E21: =ROUND(C21*$E$16,2) -> 0 | G21: =ROUND(C21*$G$16,2) -> 0 | H21: 0
A22: PROJEKTI MAKSUMUS KOKKU | C22: =SUM(C17:C21) -> 32499.99 | E22: =SUM(E17:E21) -> 16249.995 | G22: =SUM(G17:G21) -> 16249.995 | H22: 100
A24: Tabel 2. Projekti jooksul laekunud maksed ja lõppmakse
A25: Rahastamisallikas | C25: KOKKU | D25: Maksed | H25: Osakaal %
D26: I | F26: II
D27: Laekumise kuupäev pp/kk/aaaa | E27: Summa | F27: Laekumise kuupäev pp/kk/aaaa | G27: Summa
A28: 1 | B28: AMIF | C28: =E28+G28 -> 12187.5 | D28: 2016-09-07 | E28: 12187.5 | H28: ='A. Eelarve'!D12 -> 75
A29: 2 | B29: Riiklik kaasfinantseering | C29: =E29+G29 -> 4062.5 | D29: 2016-09-07 | E29: 4062.5 | H29: ='A. Eelarve'!D13 -> 25
A30: 3 | B30: Toetuse saaja omafinanantseering | C30: 0 | E30: 0 | H30: ='A. Eelarve'!D14 -> 0
A31: 4 | B31: Partnerite poolne kaasfinantseering | C31: 0 | E31: 0 | H31: ='A. Eelarve'!D15 -> 0
A32: 5 | B32: Projekti käigus saadud muud sissetulekud | C32: 0 | E32: 0 | H32: ='A. Eelarve'!D16 -> 0
A33: PROJEKTI MAKSUMUS KOKKU | C33: =SUM(C28:C32) -> 16250 | E33: =SUM(E28:E32) -> 16250 | G33: =SUM(G28:G32) -> 0 | H33: =SUM(H28:H32) -> 100
A36: =IF(G28="","Vahemakse taotlus","Lõppmakse taotlus") -> Vahemakse taotlus
A38: =IF(G28="","Käesolevaga, võttes aluseks toetuslepingu punktid "&F17&" ja "&F18&", taotlen "&B17&" toetuse vahemakse "&G17&" eurot ja kaasfinantseeringu vahemakse "&G18&" eurot eraldamist lepingu punktis 4.2 nimetatud kontole",IF(#REF!>0, "Käesolevaga, võttes aluseks lepingu punktid "&#REF!&" ja "&#REF!&" ning kooskõlas projekti kuluaruandega, taotlen toetuse lõppmakse "&#REF!&" eurot ja kaasfinantseeringu lõppmakse "&#REF!&" eurot eraldamist lepingu punktis 4.2 nimetatud kontole.","Käesolevaga, võttes aluseks lepingu punkti 4.1.4 ja kooskõlas projekti kuluaruandega teostan enammakstud toetuse "&#REF!&" eurot ja enammakstud kaasfinantseeringu "&#REF!&" eurot tagasimakse lepingu punktis 4.4 nimetatud kontole.") ) -> Käesolevaga, võttes aluseks toetuslepingu punktid 4.1.2.1 ja 4.1.2.2, taotlen AMIF toetuse vahemakse 12187,495 eurot ja kaasfinantseeringu vahemakse 4062,5 eurot eraldamist lepingu punktis 4.2 nimetatud kontole
A42: Toetuse saaja esindaja
A44: Katri Raik
A45: /nimi, allkiri/

Sheet C. KULUARUANDE KOOND
A1: =IF(G21=0,"",IF(G21=100,"","Tähelepanu! Tabel 1. Projekti maksumus ja tulud allikate lõikes (EUR), osakaalude summa ei moodusta 100%")) -> 
A2: =IF(D21=D36,"","Tähelepanu! Tabel 1. Projekti maksumus ja tulud allikate lõikes (EUR). Projekti tegelikud tulud kokku ei ole võrdne projekti tegelike kuludega.") -> 
A3: =IF(C44=D36,"","Tähelepanu! Tabel 3. Projekti kulud meetmete lõikes (EUR) kokku ei ole võrdne Tabel 2. Kuluaruande koond tegelikud kulud kokku") -> 
A4: VARJUPAIGA-, RÄNDE- JA INTEGRATSIOONIFOND
A5: Kuluaruande vorm
A6: Toetuse saaja: | B6: Sisekaitseakadeemia
A7: Projekti pealkiri: | B7: MIGRIB - usulisest, kultuurilisest ja rändetaustast lähtuv riskikäitumine: äratundmine, ennetamine, maandamine
A8: Projekti number: | B8: AMIF2016-11
A9: Toetuslepingu number: | B9: 14-8.6/274-1
A10: Projekti aruandlusperiood: | B10: 01.08.2016-31.10.2016
A11: Projekti valdkond: | B11: Varjupaik
A14: Tabel 1. Projekti maksumus ja tulud allikate lõikes (EUR)
B15: Rahastamisallikas | C15: Projekti kavandatud tulud | D15: Tegelikud tulud kokku | E15: Aruandlus-perioodi 01/08/2016 - 31/10/2016 tulud | F15: Aruandlus-perioodi pp/kk/aaaa - pp/kk/aaaa tulud | G15: Osakaal %
A16: 1 | B16: AMIF | C16: ='A. Eelarve'!C12 -> 24374.99 | D16: =E16+F16 -> 1495.67 | E16: =ROUND($E$36*G16/100,2) -> 1495.67 | F16: =ROUND($F$36*G16/100,2) -> 0 | G16: ='A. Eelarve'!D12 -> 75
A17: 2 | B17: Riiklik kaasfinantseering | C17: ='A. Eelarve'!C13 -> 8125 | D17: =E17+F17 -> 498.56 | E17: =ROUND($E$36*G17/100,2) -> 498.56 | F17: =ROUND($F$36*G17/100,2) -> 0 | G17: ='A. Eelarve'!D13 -> 25
A18: 3 | B18: Toetuse saaja omafinanantseering | C18: ='A. Eelarve'!C14 -> 0 | D18: 0 | E18: =ROUND($E$36*G18/100,2) -> 0 | F18: =ROUND($F$36*G18/100,2) -> 0 | G18: ='A. Eelarve'!D14 -> 0
A19: 4 | B19: Partnerite poolne kaasfinantseering | C19: ='A. Eelarve'!C15 -> 0 | D19: 0 | E19: =ROUND($E$36*G19/100,2) -> 0 | F19: =ROUND($F$36*G19/100,2) -> 0 | G19: ='A. Eelarve'!D15 -> 0
A20: 5 | B20: Projekti käigus saadud muud sissetulekud | C20: ='A. Eelarve'!C16 -> 0 | D20: 0 | E20: =ROUND($E$36*G20/100,2) -> 0 | F20: =ROUND($F$36*G20/100,2) -> 0 | G20: ='A. Eelarve'!D16 -> 0
A21: PROJEKTI MAKSUMUS KOKKU | C21: =SUM(C16:C20) -> 32499.99 | D21: =SUM(D16:D20) -> 1994.23 | E21: =SUM(E16:E20) -> 1994.23 | F21: =SUM(F16:F20) -> 0 | G21: =SUM(G16:G20) -> 100
A24: Tabel 2. Kuluaruande koond (EUR)
A25: Rea nr | B25: Kululiik | C25: Kavandatud eelarve | D25: Tegelikud kulud | E25: Aruandlus-perioodi 01/08/2016 - 31/10/2016 kulud | F25: Aruandlus-perioodi 01/11/2016 - 30/06/2017 kulud | G25: Eelarve täitmise %
D26: Kokku
A27: 1. | B27: Tööjõukulud | C27: ='A. Eelarve'!G48 -> 20665.82 | D27: =SUM(E27:F27) -> 701.4 | E27: ='C1. Tööjõukulud'!H36 -> 701.4 | F27: ='C1. Tööjõukulud'!H55 -> 0 | G27: =IFERROR(ROUND(D27/C27*100,2),0) -> 3.39
A28: 2. | B28: Lähetuskulud | C28: ='A. Eelarve'!G53 -> 2000 | D28: =SUM(E28,F28) -> 0 | E28: ='C2. Lähetuskulud'!H23 -> 0 | F28: ='C2. Lähetuskulud'!H41 -> 0 | G28: 0
A29: 3. | B29: Sihtrühmaga seotud tegevused | C29: ='A. Eelarve'!G55 -> 6908 | D29: =SUM(E29,F29) -> 974.35 | E29: =' C3. Sihtrühmaga seotud kulud'!H19 -> 974.35 | F29: =' C3. Sihtrühmaga seotud kulud'!H37 -> 0 | G29: 14.1
A30: 4. | B30: EL avalikustamise tegevused | C30: ='A. Eelarve'!G61 -> 800 | D30: 318.48 | E30: =' C4. EL avalikustamise kulud'!H23 -> 318.48 | F30: =' C4. EL avalikustamise kulud'!H41 -> 0 | G30: 39.81
A31: 5. | B31: Allhanked | C31: ='A. Eelarve'!G64 -> 0 | D31: 0 | E31: ='C5. Allhanked'!H23 -> 0 | F31: ='C5. Allhanked'!H41 -> 0 | G31: 0
A32: 6. | B32: Seadmed, kinnisvara | C32: ='A. Eelarve'!G67 -> 0 | D32: 0 | E32: ='C6. Seadmed, kinnisvara'!H23 -> 0 | F32: ='C6. Seadmed, kinnisvara'!H41 -> 0 | G32: 0
A33: 7. | B33: Muud otsesed kulud | C33: ='A. Eelarve'!G70 -> 0 | D33: =SUM(E33:F33) -> 0 | E33: ='C7. Muud otsesed kulud'!H23 -> 0 | F33: ='C7. Muud otsesed kulud'!H41 -> 0 | G33: 0
B34: OTSESED KULUD | C34: =SUM(C27:C30) -> 30373.82 | D34: =SUM(D27:D30) -> 1994.23 | E34: =SUM(E27:E30) -> 1994.23 | F34: 0 | G34: =IFERROR(ROUND(D34/C34*100,2),0) -> 6.57
B35: KAUDSED KULUD | C35: ='A. Eelarve'!G74 -> 2126.1674 | D35: =SUM(E35,F35) -> 0 | E35: 0 | F35: 0 | G35: 0
B36: PROJEKTI KULUD KOKKU | C36: =SUM(C34:C35) -> 32499.9874 | D36: =SUM(D34:D35) -> 1994.23 | E36: =SUM(E34:E35) -> 1994.23 | F36: 0 | G36: 6.14
A39: Tabel 3. Projekti kulud valdkondade lõikes (EUR) (kui kohaldub)
B40: Kavandatud kulud | C40: Tegelikud kulud KOKKU | D40: Aruandlus-perioodi 01/08/2016 - 31/10/2016 kulud | E40: Aruandlus-perioodi 01/11/2016 - 30/06/2017 kulud
A41: Varjupaik | B41: ='A. Eelarve'!B34 -> 32499.99 | C41: =D41+E41 -> 1994.23 | D41: 1994.23 | E41: 0
A42: Integratsioon | B42: ='A. Eelarve'!B35 -> 0 | C42: =D42+E42 -> 0 | D42: 0 | E42: 0
A43: Tagasipöördumine | B43: ='A. Eelarve'!B36 -> 0 | C43: 0 | D43: 0 | E43: 0
A44: KOKKU | B44: =SUM(B41:B43) -> 32499.99 | C44: =SUM(C41:C43) -> 1994.23 | D44: =SUM(D41:D43) -> 1994.23 | E44: =SUM(E41:E43) -> 0
A46: Tabel 3. Projekti kulud meetmete lõikes (EUR) (kui kohaldub)
B47: Kavandatud kulud | C47: Tegelikud kulud KOKKU | D47: Aruandlus-perioodi 01/08/2016 - 31/10/2016 kulud | E47: Aruandlus-perioodi 01/11/2016 - 30/06/2017 kulud
A48: ='A. Eelarve'!A41 -> Vastuvõtt/varjupaik | B48: ='A. Eelarve'!B41 -> 32499.99 | C48: =D48+E48 -> 1994.23 | D48: 1994.23 | E48: 0
A49: ='A. Eelarve'!A42 -> Suutlikkus | B49: ='A. Eelarve'!B42 -> 0 | C49: =D49+E49 -> 0 | D49: 0 | E49: 0
A50: KOKKU | B50: =SUM(B48:B49) -> 32499.99 | C50: =SUM(C48:C49) -> 1994.23 | D50: =SUM(D48:D49) -> 1994.23 | E50: =SUM(E48:E49) -> 0
A52: Tabel 4. Toetuse saaja kinnitus
A53: Mina, toetuse saaja, kinnitan, et: | C53: VASTUS | D53: SELGITUS
A54: 1 | B54: Projekti raames tehtud kulusid on rahastatud teistest allikatest (sh teistest Euroopa Liidu fondidest või programmidest) | C54: Ei
A55: 2 | B55: Projekti raames on teenitud tulu | C55: Ei
A56: 3 | B56: Kui projekti raames on teenitud tulu, siis see on maksetaotluses abikõlblikest kuludest maha arvatud | C56: Ei kohaldu
A57: 4 | B57: Käibemaksukohuslase või mittekohuslase staatus on võrreldes toetuse taotluses tooduga muutunud | C57: Ei

Sheet C1. Tööjõukulud
A1: 1. Tööjõukulud
B4: Projekti tegelikud kulud | H4: Summa
A5: Rea nr | B5: Kulu selgitus (Tabelisse lisada lahtreid vastavalt kuludokumentide arvule)
B6: Kuludokumendi väljastaja | C6: Kuludokumendi nimetus | D6: Kuludokumendi number | E6: Kuludokumendi kuupäev | F6: Kulu tasumise kuupäev | G6: Kulu lühikirjeldus
A7: 1 | B7: Sisekaitseakadeemia | C7: Tööajatabel | D7: 1 | E7: 2016-08-31 | F7: 2016-08-31 | G7: Kert Valdaru Neto töötasu | H7: 168.45
A8: 1.1 | B8: Sisekaitseakadeemia | C8: Tööajatabel | D8: 1 | E8: 2016-08-31 | F8: 2016-09-12 | G8: Kert Valdaru Isiku töötuskindlustus | H8: 2.8
A9: 1.2 | B9: Sisekaitseakadeemia | C9: Tööajatabel | D9: 1 | E9: 2016-08-31 | F9: 2016-09-12 | G9: Kert Valdaru Isiku kogumispension | H9: 3.49
A10: 1.3 | B10: Sisekaitseakadeemia | C10: Tööajatabel | D10: 1 | E10: 2016-08-31 | F10: 2016-09-12 | G10: Kert Valdaru Isiku tulumaks | H10: 0
A11: 1.4 | B11: Sisekaitseakadeemia | C11: Tööajatabel | D11: 1 | E11: 2016-08-31 | F11: 2016-09-12 | G11: Kert Valdaru Tööandja sotsiaalmaks | H11: 57.66
A12: 1.5 | B12: Sisekaitseakadeemia | C12: Tööajatabel | D12: 1 | E12: 2016-08-31 | F12: 2016-09-12 | G12: Kert Valdaru Tööandja töötuskindlustus | H12: 1.4
A13: 2 | B13: Sisekaitseakadeemia | C13: Tööajatabel | D13: 2 | E13: 2016-09-30 | F13: 2016-09-30 | G13: Kert Valdaru Neto töötasu | H13: 168.45
A14: 2.1 | B14: Sisekaitseakadeemia | C14: Tööajatabel | D14: 2 | E14: 2016-09-30 | F14: 2016-10-10 | G14: Kert Valdaru Isiku töötuskindlustus | H14: 2.8
A15: 2.2 | B15: Sisekaitseakadeemia | C15: Tööajatabel | D15: 2 | E15: 2016-09-30 | F15: 2016-10-10 | G15: Kert Valdaru Isiku kogumispension | H15: 3.49
A16: 2.3 | B16: Sisekaitseakadeemia | C16: Tööajatabel | D16: 2 | E16: 2016-09-30 | F16: 2016-10-10 | G16: Kert Valdaru Isiku tulumaks | H16: 0
A17: 2.4 | B17: Sisekaitseakadeemia | C17: Tööajatabel | D17: 2 | E17: 2016-09-30 | F17: 2016-10-10 | G17: Kert Valdaru Tööandja sotsiaalmaks | H17: 57.66
A18: 2.5 | B18: Sisekaitseakadeemia | C18: Tööajatabel | D18: 2 | E18: 2016-09-30 | F18: 2016-10-10 | G18: Kert Valdaru Tööandja töötuskindlustus | H18: 1.4
A19: 3 | B19: Sisekaitseakadeemia | C19: Tööajatabel | D19: 3 | E19: 2016-10-31 | F19: 2016-10-31 | G19: Kert Valdaru Neto töötasu | H19: 168.44
A20: 3.1 | B20: Sisekaitseakadeemia | C20: Tööajatabel | D20: 3 | E20: 2016-10-31 | F20: 2016-11-10 | G20: Kert Valdaru Isiku töötuskindlustus | H20: 2.8
A21: 3.2 | B21: Sisekaitseakadeemia | C21: Tööajatabel | D21: 3 | E21: 2016-10-31 | F21: 2016-11-10 | G21: Kert Valdaru Isiku kogumispension | H21: 3.49
A22: 3.3 | B22: Sisekaitseakadeemia | C22: Tööajatabel | D22: 3 | E22: 2016-10-31 | F22: 2016-11-10 | G22: Kert Valdaru Isiku tulumaks | H22: 0
A23: 3.4 | B23: Sisekaitseakadeemia | C23: Tööajatabel | D23: 3 | E23: 2016-10-31 | F23: 2016-11-10 | G23: Kert Valdaru Tööandja sotsiaalmaks | H23: 57.67
A24: 3.5 | B24: Sisekaitseakadeemia | C24: Tööajatabel | D24: 3 | E24: 2016-10-31 | F24: 2016-11-10 | G24: Kert Valdaru Tööandja töötuskindlustus | H24: 1.4
A36: Aruandlusperioodi 01/08/2016-31/10/2016 kulud kokku | H36: =SUM(H7:H35) -> 701.4
A55: Aruandlusperioodi pp/kk/aaaa-pp/kk/aaaa kulud kokku | H55: =SUM(H37:H54) -> 0
A56: Tööjõukulud kokku | H56: =H36+H55 -> 701.4

Sheet C2. Lähetuskulud
A1: 2. Lähetuskulud
B3: Projekti tegelikud kulud | H3: Summa
A4: Rea nr | B4: Kulu selgitus (Tabelisse lisada lahtreid vastavalt kuludokumentide arvule)
B5: Kuludokumendi väljastaja | C5: Kuludokumendi nimetus | D5: Kuludokumendi number | E5: Kuludokumendi kuupäev | F5: Kulu tasumise kuupäev | G5: Kulu lühikirjeldus
A23: Aruandlusperioodi pp/kk/aaaa-pp/kk/aaaa kulud kokku | H23: =SUM(H6:H22) -> 0
A41: Aruandlusperioodi pp/kk/aaaa-pp/kk/aaaa kulud kokku | H41: =SUM(H24:H40) -> 0
A42: Lähetuskulud kokku | H42: =H23+H41 -> 0

Sheet C3. Sihtrühmaga seotud kulud
A1: 3. Sihtrühmaga seotud kulud
B3: Projekti tegelikud kulud | H3: Summa
A4: Rea nr | B4: Kulu selgitus (Tabelisse lisada lahtreid vastavalt kuludokumentide arvule)
B5: Kuludokumendi väljastaja | C5: Kuludokumendi nimetus | D5: Kuludokumendi number | E5: Kuludokumendi kuupäev | F5: Kulu tasumise kuupäev | G5: Kulu lühikirjeldus
A6: 1100033573 | B6: Q Catering OÜ | C6: Arve | D6: 16710 | E6: 2016-10-26 | F6: 2016-11-09 | G6: Kohvipausid 18.10 ja 25.10 | H6: 345.6
A7: 1100034228 | B7: Virumaa Suurköök OÜ | C7: Arve | D7: 117116-LVR40 | E7: 2016-10-27 | F7: 2016-11-10 | G7: Rakvere koolitus | H7: 159.25
A8: 1100034227 | B8: Virumaa Suurköök OÜ | C8: Arve | D8: 117092-LVR40 | E8: 2016-10-20 | F8: 2016-11-09 | G8: Rakvere koolituse toitlustus | H8: 149.95
A9: 1100034229 | B9: MeieMaitse OÜ | C9: Arve | D9: MA1600362 | E9: 2016-10-28 | F9: 2016-11-11 | G9: Kohvipausid 21.10 ja 28.10 | H9: 319.55
A19: Aruandlusperioodi 01/08/2016-31/10/2016 kulud kokku | H19: =SUM(H6:H18) -> 974.35
A37: Aruandlusperioodi pp/kk/aaaa-pp/kk/aaaa kulud kokku | H37: =SUM(H20:H36) -> 0
A38: Sihtühmaga seotud kulud | H38: =H19+H37 -> 974.35

Sheet C4. EL avalikustamise kulud
A1: 4. EL avalikustamise kulud
B3: Projekti tegelikud kulud | H3: Summa
A4: Rea nr | B4: Kulu selgitus (Tabelisse lisada lahtreid vastavalt kuludokumentide arvule)
B5: Kuludokumendi väljastaja | C5: Kuludokumendi nimetus | D5: Kuludokumendi number | E5: Kuludokumendi kuupäev | F5: Kulu tasumise kuupäev | G5: Kulu lühikirjeldus
A6: 1100033148 | B6: Stillabunt OÜ | C6: Arve | D6: 12518 | E6: 2016-10-10 | F6: 2016-10-31 | G6: Roll-up ja plakatid | H6: 108
A7: 1100029217 | B7: L&L Reklaam OÜ | C7: Arve | D7: 1609015 | E7: 2016-09-16 | F7: 2016-10-10 | G7: Meened (kleebised ja kirjutusvahendid) | H7: 210.48
A23: Aruandlusperioodi 01/08/2016-31/10/2016 kulud kokku | H23: =SUM(H6:H22) -> 318.48
A41: Aruandlusperioodi pp/kk/aaaa-pp/kk/aaaa kulud kokku | H41: =SUM(H24:H40) -> 0
A42: EL avalikustamise kulud kokku | H42: =H23+H41 -> 318.48

Sheet C5. Allhanked
A1: 5. Allhanked
B3: Projekti tegelikud kulud | H3: Summa
A4: Rea nr | B4: Kulu selgitus (Tabelisse lisada lahtreid vastavalt kuludokumentide arvule)
B5: Kuludokumendi väljastaja | C5: Kuludokumendi nimetus | D5: Kuludokumendi number | E5: Kuludokumendi kuupäev | F5: Kulu tasumise kuupäev | G5: Kulu lühikirjeldus
A23: Aruandlusperioodi pp/kk/aaaa-pp/kk/aaaa kulud kokku | H23: =SUM(H6:H22) -> 0
A41: Aruandlusperioodi pp/kk/aaaa-pp/kk/aaaa kulud kokku | H41: =SUM(H24:H40) -> 0
A42: Allhangetega seotud kulud kokku | H42: =H23+H41 -> 0

Sheet C6. Seadmed, kinnisvara
A1: 6. Seadmed/kinnisvara
B3: Projekti tegelikud kulud | H3: Summa
A4: Rea nr | B4: Kulu selgitus (Tabelisse lisada lahtreid vastavalt kuludokumentide arvule)
B5: Kuludokumendi väljastaja | C5: Kuludokumendi nimetus | D5: Kuludokumendi number | E5: Kuludokumendi kuupäev | F5: Kulu tasumise kuupäev | G5: Kulu lühikirjeldus
A23: Aruandlusperioodi pp/kk/aaaa-pp/kk/aaaa kulud kokku | H23: =SUM(H6:H22) -> 0
A41: Aruandlusperioodi pp/kk/aaaa-pp/kk/aaaa kulud kokku | H41: =SUM(H24:H40) -> 0
A42: Seadmete/kinnisvaraga seotud kulud kokku | H42: =H23+H41 -> 0

Sheet C7. Muud otsesed kulud
A1: 7. Muud otsesed kulud
B3: Projekti tegelikud kulud | H3: Summa
A4: Rea nr | B4: Kulu selgitus (Tabelisse lisada lahtreid vastavalt kuludokumentide arvule)
B5: Kuludokumendi väljastaja | C5: Kuludokumendi nimetus | D5: Kuludokumendi number | E5: Kuludokumendi kuupäev | F5: Kulu tasumise kuupäev | G5: Kulu lühikirjeldus
A23: Aruandlusperioodi pp/kk/aaaa-pp/kk/aaaa kulud kokku | H23: =SUM(H6:H22) -> 0
A41: Aruandlusperioodi pp/kk/aaaa-pp/kk/aaaa kulud kokku | H41: =SUM(H24:H40) -> 0
A42: Muud otsesed kulud kokku | H42: =H23+H41 -> 0

Sheet Nähtamatu leht (hidden)
A1: Varjupaik
A2: Integratsioon
A3: Tagasipöördumine
A6: tund
A7: päev
A8: kuu
A9: tk
A12: Jah
A13: Ei
A14: Ei kohaldu
